fUST/lending_fUST_20240120
["ID","MTS","AMOUNT","RATE_DAILY","PERIOD"]
[312269149,1705727442060,-664.83,0.00032876,2]
[312269151,1705727442069,-500.0,0.00032876,2]
[312269153,1705727442078,-1077.96,0.00032876,2]
[312269155,1705727442088,-503.49905887,0.00032876,2]
[312269157,1705727442097,-500.0,0.00032876,7]
[312269159,1705727442107,-500.0,0.00032876,7]
[312269161,1705727442120,-194.0891474,0.00032876,7]
[312269163,1705727442130,-269.73443244,0.00032876,7]
[312269165,1705727442139,-206.08558045,0.00032876,7]
[312269167,1705727442149,-500.0,0.00032876,7]
[312269169,1705727442158,-133.40184768,0.00032876,7]
[312269193,1705727442375,-366.59815232,0.00032876,7]
[312269195,1705727442385,-150.25200268,0.00032876,7]
[312269459,1705727446887,-154.7215013,0.00032647,5]
[312269461,1705727446896,-4050.32555179,0.00032648,3]
[312269524,1705728342190,-1581.76828075,0.00021902,2]
[312269525,1705728342209,-1322.04423181,0.00021903,2]
[312269603,1705728632302,-272.47884373,0.00020975,2]
[312269604,1705728632311,-824.03065617,0.00020975,2]
[312269606,1705728632320,-1114.14548175,0.00020976,2]
[312269608,1705728632329,-1438.69728082,0.00020977,2]
[312269609,1705728632339,-1197.48170656,0.00020978,2]
[312269610,1705728632350,-849.96832798,0.00020979,2]
[312269611,1705728632359,-154.7215013,0.00020979,4]
[312269612,1705728632369,-154.7215013,0.00020979,2]
[312269613,1705728632378,-678.35754423,0.0002098,2]
[312269614,1705728632387,-874.04705685,0.0002098,2]
[312269615,1705728632398,-154.7215013,0.0002098,2]
[312269616,1705728632408,-24900.0,0.00020981,2]
[312269617,1705728632418,-327.38324213,0.00021,2]
[312269618,1705728632430,-10531.78529971,0.00021159,2]
[312269619,1705728632440,-880.33208,0.00021167,2]
[312269620,1705728632452,-442.28367402,0.00021903,2]
[312269621,1705728632461,-300.0,0.00021903,2]
[312269623,1705728632470,-2083.53906819,0.00021903,2]
[312269626,1705728632480,-1825.35938733,0.00021903,2]
[312269628,1705728632489,-154.93802479,0.00021903,2]
[312269630,1705728632500,-166.666666,0.00021918,2]
[312269631,1705728632509,-293.34385947,0.00022,4]
[312269633,1705728632519,-425.80364021,0.00022,2]
[312269636,1705728632529,-166.666666,0.00022431,2]
[312269637,1705728632539,-166.666666,0.00022944,2]
[312269640,1705728632550,-3966.85623058,0.00022999,2]
[312269641,1705728632561,-1570.89243892,0.00023,2]
[312269643,1705728632571,-166.666666,0.00023456,2]
[312269645,1705728632580,-166.666666,0.00023969,2]
[312269647,1705728632589,-4012.5594856,0.00024,2]
[312269649,1705728632600,-200.0,0.00024092,7]
[312269650,1705728632609,-166.666666,0.00024482,2]
[312269651,1705728632618,-1045.90652664,0.00025,2]
[312269653,1705728632627,-289.10366056,0.00026454,2]
[312269754,1705728638976,-4431.96084232,0.00026454,2]
[312269755,1705728638985,-170.871083,0.00026456,2]
[312269756,1705728638994,-280.0,0.00026501,15]
[312269757,1705728639004,-1581.76828075,0.0002915,2]
[312269758,1705728639013,-391.0,0.00029151,15]
[312269759,1705728639023,-154.73694719,0.00029587,2]
[312269760,1705728639032,-283.12887752,0.0003,3]
[312269761,1705728639041,-682.57522362,0.0003,3]
[312269763,1705728639051,-150.063,0.0003,2]
[312269766,1705728639060,-548.0316867,0.00030137,2]
[312269769,1705728639073,-159.222007,0.00030137,2]
[312269771,1705728639082,-159.138588,0.00030137,2]
[312269772,1705728639092,-176.1,0.000309,30]
[312269773,1705728639101,-238.14143998,0.00031,4]
[312269774,1705728639111,-796.1115468,0.00031016,5]
[312269775,1705728639123,-7108.94370751,0.00031016,5]
[312269873,1705728641442,-1970.26317955,0.00031016,5]
[312269875,1705728641452,-150.0,0.000312,6]
[312269877,1705728641461,-880.33208,0.00031751,2]
[312269879,1705728641470,-150.5037423,0.00032,4]
[312269881,1705728641479,-154.7215013,0.00032,4]
[312269883,1705728641489,-319.15753811,0.00032064,4]
[312269885,1705728641498,-200.0,0.00032066,15]
[312269888,1705728641508,-348.0,0.00032066,15]
[312269889,1705728641517,-1273.92331985,0.00032638,2]
[312269891,1705728641527,-195.24830444,0.00032648,4]
[312269894,1705728641536,-498.81016678,0.00032648,4]
[312269895,1705728641545,-154.7215013,0.00032648,2]
[312269896,1705728641554,-154.7215013,0.00032648,4]
[312269897,1705728641563,-4321.29306998,0.00032648,4]
[312269898,1705728641572,-980.8946807,0.00032648,4]
[312269899,1705728641581,-1026.09234423,0.00032648,2]
[312269900,1705728641590,-13434.21,0.00032663,3]
[312269901,1705728641599,-165.08113318,0.00032671,4]
[312269902,1705728641608,-155.60667429,0.00032671,4]
[312269903,1705728641617,-2617.53242043,0.00032672,4]
[312269904,1705728641629,-121.19895895,0.00032672,4]
[312269905,1705728641638,-3421.81370562,0.00032673,5]
[312269906,1705728641648,-2287.26626204,0.00032673,5]
[312269907,1705728641659,-2953.30286897,0.00032673,5]
[312269908,1705728641670,-1143.90546212,0.00032673,5]
[312270380,1705728646415,-350.98489009,0.00021903,2]
[312270381,1705728646427,-1474.37449724,0.00021903,2]
[312270382,1705728646437,-4778.43473117,0.00032671,4]
[312270652,1705729596131,-312.51258084,0.00021013,2]
[312270688,1705729832554,-154.69061876,0.00018906,3]
[312270690,1705729832565,-272.47884373,0.00018907,2]
[312270692,1705729832575,-154.69061876,0.00018908,2]
[312270694,1705729832585,-960.48234928,0.00018913,2]
[312270696,1705729832593,-15909.91645662,0.00019497,2]
[312270698,1705729832603,-10531.78529971,0.00019498,2]
[312270699,1705729832612,-1114.14548175,0.000195,2]
[312270700,1705729832621,-824.03065617,0.00019999,2]
[312270702,1705729832630,-154.69061876,0.0002,2]
[312270704,1705729832639,-678.35754423,0.00020999,2]
[312270706,1705729832648,-327.38324213,0.00021,2]
[312270708,1705729832658,-1764.32790583,0.00021,2]
[312270710,1705729832667,-1197.48170656,0.0002101,2]
[312270712,1705729832676,-849.96832798,0.0002101,2]
[312270714,1705729832685,-2083.53906819,0.00021013,2]
[312270715,1705729832693,-300.0,0.00021013,2]
[312270717,1705729832704,-1825.35938733,0.00021013,2]
[312270720,1705729832714,-874.04705685,0.00021151,2]
[312270721,1705729832723,-170.026133,0.00021152,2]
[312270724,1705729832733,-166.666666,0.00021918,2]
[312270726,1705729832742,-293.17583958,0.00022,4]
[312270729,1705729832752,-3966.85623058,0.00022,2]
[312270732,1705729832761,-425.80364021,0.00022,2]
[312270734,1705729832770,-166.666666,0.00022431,2]
[312270737,1705729832780,-24900.0,0.00022914,2]
[312270739,1705729832789,-166.666666,0.00022944,2]
[312270741,1705729832799,-1570.89243892,0.00023,2]
[312270743,1705729832808,-200.0,0.00023121,7]
[312270745,1705729832818,-166.666666,0.00023456,2]
[312270747,1705729832827,-960.48234928,0.00023913,2]
[312270749,1705729832836,-166.666666,0.00023969,2]
[312270751,1705729832846,-4012.5594856,0.00024,2]
[312270753,1705729832855,-166.666666,0.00024482,2]
[312270755,1705729832864,-1045.90652664,0.00025,2]
[312270757,1705729832874,-4721.06450288,0.00025,2]
[312270758,1705729832883,-280.0,0.00025433,7]
[312270759,1705729832892,-155.10848219,0.00026454,2]
[312270760,1705729832902,-796.1115468,0.0002785,4]
[312270761,1705729832912,-391.0,0.00027976,15]
[312270762,1705729832921,-960.48234928,0.00028913,2]
[312270763,1705729832930,-548.0316867,0.00029315,2]
[312270764,1705729832941,-156.95432805,0.0003,2]
[312270765,1705729832950,-283.12887752,0.0003,3]
[312270766,1705729832962,-682.57522362,0.0003,3]
[312270767,1705729832971,-159.205323,0.00030137,2]
[312270768,1705729832980,-159.138588,0.00030137,2]
[312270769,1705729832990,-170.4501808,0.00030472,2]
[312270770,1705729832999,-155.62760973,0.00030741,5]
[312270771,1705729833009,-200.0,0.00030774,15]
[312270772,1705729833019,-348.0,0.00030774,15]
[312270773,1705729833028,-238.14143998,0.00031,4]
[312270774,1705729833038,-150.063,0.00032,2]
[312270775,1705729833047,-238.14143998,0.00032456,4]
[312270776,1705729833056,-319.15753811,0.00032457,4]
[312270777,1705729833066,-154.69061876,0.00032457,4]
[312270778,1705729833075,-331.03561731,0.00032458,2]
[312270779,1705729833084,-150.0,0.00032628,2]
[312270780,1705729833094,-8589.55,0.0003264,3]
[312270781,1705729833103,-7157.96,0.0003264,3]
[312270782,1705729833113,-176.1,0.00032641,30]
[312270783,1705729833122,-8870.0290694,0.00032641,3]
[312270793,1705729838581,-7199.68,0.00032641,3]
[312270794,1705729838591,-787.34773645,0.00032649,4]
[312270795,1705729838600,-157.77333042,0.00032649,4]
[312270796,1705729838609,-154.73694719,0.00032649,4]
[312270797,1705729838619,-254.15946642,0.00032649,4]
[312270798,1705729838631,-261.8915775,0.00032649,4]
[312270799,1705729838640,-2125.21650005,0.00032649,4]
[312270800,1705729838650,-452.87467727,0.0003265,2]
[312270801,1705729838659,-500.0,0.0003265,2]
[312270802,1705729838669,-213.75308546,0.0003265,2]
[312270803,1705729838679,-500.0,0.0003265,2]
[312270804,1705729838688,-153.7923736,0.0003265,2]
[312270805,1705729838698,-467.4537376,0.0003265,2]
[312270806,1705729838709,-599.55738739,0.0003265,2]
[312270807,1705729838718,-171.76318065,0.0003265,2]
[312270808,1705729838734,-328.23681935,0.0003265,2]
[312270809,1705729838877,-500.0,0.0003265,2]
[312270810,1705729838889,-500.0,0.0003265,2]
[312270811,1705729838898,-500.0,0.0003265,2]
[312270812,1705729838907,-500.0,0.0003265,2]
[312270813,1705729838917,-500.0,0.0003265,2]
[312270814,1705729838926,-364.27555027,0.0003265,2]
[312270848,1705729843533,-599.84130585,0.00032649,2]
[312270850,1705729843543,-135.72444973,0.0003265,2]
[312270852,1705729843553,-500.0,0.0003265,2]
[312270854,1705729843563,-500.0,0.0003265,2]
[312270856,1705729843572,-603.4025413,0.0003265,2]
[312270858,1705729843583,-500.0,0.0003265,2]
[312270860,1705729843592,-500.0,0.0003265,2]
[312270862,1705729843602,-500.0,0.0003265,2]
[312270864,1705729843611,-321.03170312,0.0003265,2]
[312270947,1705729846631,-644.56243777,0.00032649,4]
[312271130,1705730829119,-977.70118808,0.00018882,2]
[312271131,1705730829139,-211.47192424,0.00018883,2]
[312271132,1705730829161,-154.69061876,0.00018884,3]
[312271133,1705730829180,-272.47884373,0.00018885,2]
[312271134,1705730829200,-295.67886807,0.00018889,2]
[312271135,1705730853085,-154.69061876,0.00017,2]
[312271136,1705730853106,-154.69061876,0.00018889,2]
[312271137,1705730853126,-476.87043927,0.00018889,2]
[312271280,1705731038908,-154.67518212,0.00016999,3]
[312271282,1705731038918,-154.69061876,0.00017,2]
[312271284,1705731038929,-2883.14656874,0.00018277,2]
[312271647,1705731044447,-282.09998368,0.00018277,2]
[312273086,1705731845756,1468.00454349,0.00015748,2]
[312273087,1705731909272,684.00305895,0.00015748,2]
[312273088,1705731923261,408.39347109,0.00015748,2]
[312273089,1705731923911,154.67518212,0.00014173,2]
[312273091,1705731937490,-154.67518212,0.00016448,3]
[312273092,1705731937513,-272.47884373,0.00016847,2]
[312273093,1705731937534,-2476.65848671,0.00016848,2]
[312273094,1705731939863,154.67518212,0.00014173,2]
[312273095,1705731957859,263.30300751,0.00012756,2]
[312273148,1705732231949,-154.67518212,0.00016847,3]
[312273149,1705732231960,-874.04705685,0.00017795,2]
[312273150,1705732231970,-272.47884373,0.00017796,2]
[312273151,1705732231979,-162.17318871,0.00017797,2]
[312273152,1705732231989,-10531.78529971,0.00017898,2]
[312273153,1705732231998,-223.87,0.00018133,2]
[312273154,1705732232008,-223.87,0.00018133,2]
[312273155,1705732232018,-223.871,0.00018133,2]
[312273156,1705732232029,-223.87,0.00018133,2]
[312273157,1705732232038,-223.871,0.00018133,2]
[312273158,1705732232048,-284.193619,0.00018314,2]
[312273159,1705732232058,-817.19,0.00018511,2]
[312273160,1705732232067,-817.19,0.00018511,2]
[312273161,1705732232075,-817.191,0.00018511,2]
[312273162,1705732232085,-817.19,0.00018511,2]
[312273163,1705732232095,-817.191,0.00018511,2]
[312273164,1705732232105,-200.0,0.00018531,2]
[312273165,1705732232115,-164.98581571,0.00018889,2]
[312273166,1705732232124,-3604.20682987,0.0001889,2]
[312273167,1705732232133,-242.52346398,0.00018897,2]
[312273168,1705732232143,-786.87035084,0.00018897,2]
[312273169,1705732232152,-2014.44660015,0.000189,2]
[312273170,1705732232162,-1581.76828075,0.00019,2]
[312273171,1705732232172,-170.026133,0.00019178,2]
[312273172,1705732232182,-169.828506,0.00019178,2]
[312273173,1705732232191,-1114.14548175,0.000195,2]
[312273174,1705732232200,-824.03065617,0.00019999,2]
[312273175,1705732232211,-154.69061876,0.0002,2]
[312273176,1705732232220,-156.71629179,0.0002,2]
[312273177,1705732232229,-154.67518212,0.0002,2]
[312273178,1705732232241,-154.67518212,0.0002,2]
[312273179,1705732232250,-154.67518212,0.0002,2]
[312273180,1705732232260,-154.67518212,0.0002,2]
[312273181,1705732232269,-571.02881103,0.0002,2]
[312273182,1705732232280,-1197.48170656,0.00020352,2]
[312273183,1705732232289,-154.67518212,0.00020352,2]
[312273184,1705732232299,-3286.52869079,0.00020367,5]
[312273185,1705732232308,-280.0,0.00020384,2]
[312273186,1705732232317,-3482.62955366,0.00020577,2]
[312273187,1705732232328,-12413.96,0.00020919,3]
[312273188,1705732232338,-6157.55769531,0.00020929,3]
[312273260,1705732238066,-24900.0,0.00017924,2]
[312273262,1705732238076,-849.96832798,0.0002,2]
[312273264,1705732238085,-678.35754423,0.00020351,2]
[312273266,1705732238094,-154.67518212,0.00020351,2]
[312273268,1705732238104,-8739.19230469,0.00020929,3]
[312273270,1705732238113,-1770.454751,0.00020939,2]
[312273271,1705732238122,-1770.454751,0.00020939,2]
[312273272,1705732238131,-17876.1,0.00020939,3]
[312273274,1705732238140,-151.0,0.00020949,2]
[312273275,1705732238149,-151.0,0.00020949,2]
[312273276,1705732238158,-151.0,0.00020949,2]
[312273278,1705732238167,-6113.899472,0.00020949,2]
[312273280,1705732238176,-6113.899472,0.00020949,2]
[312273281,1705732238185,-318.491003,0.00020969,2]
[312273282,1705732238195,-318.491003,0.00020969,2]
[312273284,1705732238204,-318.491003,0.00020979,2]
[312273286,1705732238213,-318.491003,0.00020979,2]
[312273287,1705732238223,-151.0,0.00020979,2]
[312273288,1705732238233,-151.0,0.00020979,2]
[312273289,1705732238243,-151.0,0.00020979,2]
[312273290,1705732238256,-151.0,0.00020979,2]
[312273291,1705732238265,-151.0,0.00020979,2]
[312273292,1705732238274,-151.0,0.00020979,2]
[312273293,1705732238283,-6113.899472,0.00020979,2]
[312273294,1705732238295,-6113.899472,0.00020979,2]
[312273295,1705732238304,-6113.899472,0.00020979,2]
[312273296,1705732238315,-6113.899472,0.00020979,2]
[312273297,1705732238326,-1770.454751,0.00020979,2]
[312273298,1705732238337,-1770.454751,0.00020979,2]
[312273299,1705732238346,-1770.454751,0.00020979,2]
[312273300,1705732238357,-1770.454751,0.00020979,2]
[312273301,1705732238366,-1770.454751,0.00020979,2]
[312273302,1705732238375,-1770.454751,0.00020979,2]
[312273303,1705732238385,-318.491003,0.00020989,2]
[312273304,1705732238395,-318.491003,0.00020989,2]
[312273305,1705732238404,-151.0,0.00020989,2]
[312273306,1705732238414,-151.0,0.00020989,2]
[312273307,1705732238424,-151.0,0.00020989,2]
[312273308,1705732238434,-6113.899472,0.00020989,2]
[312273309,1705732238443,-6113.899472,0.00020989,2]
[312273310,1705732238453,-1770.454751,0.00020989,2]
[312273311,1705732238462,-1770.454751,0.00020989,2]
[312273312,1705732238472,-201.58152353,0.00020997,2]
[312273313,1705732238481,-264.60687267,0.00020997,2]
[312273314,1705732238491,-616.3385083,0.00020997,2]
[312273315,1705732238501,-155.21656056,0.00020997,2]
[312273316,1705732238510,-155.31859854,0.00020997,2]
[312273317,1705732238520,-202.78082283,0.00020997,2]
[312273318,1705732238529,-151.0,0.00020997,2]
[312273319,1705732238538,-151.0,0.00020997,2]
[312273320,1705732238548,-151.0,0.00020997,2]
[312273321,1705732238557,-6113.899472,0.00020997,2]
[312273322,1705732238567,-6113.899472,0.00020997,2]
[312273323,1705732238577,-1770.454751,0.00020997,2]
[312273324,1705732238586,-1770.454751,0.00020997,2]
[312273325,1705732238595,-470.52459336,0.00020997,2]
[312273326,1705732238605,-2073.0632604,0.00020997,2]
[312273327,1705732238614,-687.73320843,0.00020997,2]
[312273328,1705732238624,-154.7215013,0.00020997,2]
[312273329,1705732238633,-161.76038931,0.00020997,2]
[312273330,1705732238643,-1241.8968664,0.00020997,2]
[312273331,1705732238653,-242.99577859,0.00020997,2]
[312273332,1705732238663,-711.02459179,0.00020997,2]
[312273333,1705732238673,-154.84514885,0.00020998,2]
[312273334,1705732238682,-1418.91986757,0.00020998,2]
[312273335,1705732238692,-269.04168,0.00020999,2]
[312273336,1705732238702,-318.491003,0.00020999,2]
[312273337,1705732238711,-318.491003,0.00020999,2]
[312273338,1705732238721,-318.491003,0.00020999,2]
[312273339,1705732238730,-318.491003,0.00020999,2]
[312273340,1705732238739,-318.491003,0.00020999,2]
[312273341,1705732238748,-318.491003,0.00020999,2]
[312273342,1705732238758,-318.491003,0.00020999,2]
[312273343,1705732238768,-318.491003,0.00020999,2]
[312273344,1705732238778,-318.491003,0.00020999,2]
[312273345,1705732238788,-318.491003,0.00020999,2]
[312273346,1705732238798,-151.0,0.00020999,2]
[312273347,1705732238808,-288.0,0.00020999,2]
[312273348,1705732238820,-151.0,0.00020999,2]
[312273349,1705732238830,-151.0,0.00020999,2]
[312273350,1705732238841,-151.0,0.00020999,2]
[312273351,1705732238852,-151.0,0.00020999,2]
[312273352,1705732238861,-151.0,0.00020999,2]
[312273353,1705732238870,-162.499277,0.00020999,2]
[312273354,1705732238881,-6113.899472,0.00020999,2]
[312273355,1705732238892,-6113.899472,0.00020999,2]
[312273356,1705732238903,-6113.899472,0.00020999,2]
[312273357,1705732238912,-6113.899472,0.00020999,2]
[312273358,1705732238921,-6113.899472,0.00020999,2]
[312273359,1705732238932,-6113.899472,0.00020999,2]
[312273360,1705732238942,-6113.899472,0.00020999,2]
[312273361,1705732238951,-6113.899472,0.00020999,2]
[312273362,1705732238961,-6113.899472,0.00020999,2]
[312273363,1705732238972,-6113.899469,0.00020999,2]
[312273364,1705732238982,-1770.454751,0.00020999,2]
[312273365,1705732238991,-1770.454751,0.00020999,2]
[312273366,1705732239002,-1770.454751,0.00020999,2]
[312273367,1705732239011,-1770.454751,0.00020999,2]
[312273368,1705732239019,-1770.454751,0.00020999,2]
[312273369,1705732239029,-1770.454751,0.00020999,2]
[312273370,1705732239040,-1770.454751,0.00020999,2]
[312273371,1705732239050,-1770.454751,0.00020999,2]
[312273372,1705732239059,-81144.18594681,0.00020999,2]
[312273373,1705732239071,-1764.32790583,0.00021,2]
[312273374,1705732239080,-327.38324213,0.00021,2]
[312273375,1705732239090,-166.666666,0.00021918,2]
[312273376,1705732239099,-3966.85623058,0.00022,2]
[312273377,1705732239110,-293.34385947,0.00022,4]
[312273378,1705732239120,-425.80364021,0.00022,2]
[312273379,1705732239129,-391.0,0.00022423,7]
[312273380,1705732239139,-166.666666,0.00022431,2]
[312273381,1705732239148,-166.666666,0.00022944,2]
[312273382,1705732239158,-1570.89243892,0.00023,2]
[312273383,1705732239168,-402.05937504,0.00023288,2]
[312273384,1705732239177,-500.0,0.00023288,2]
[312273385,1705732239186,-404.98658382,0.00023288,2]
[312273386,1705732239196,-186.33494627,0.00023288,2]
[312273387,1705732239205,-500.0,0.00023288,2]
[312273388,1705732239214,-500.0,0.00023288,2]
[312273389,1705732239225,-254.79112878,0.00023288,2]
[312273390,1705732239236,-500.0,0.00023288,2]
[312273391,1705732239248,-500.0,0.00023288,2]
[312273392,1705732239259,-500.0,0.00023288,2]
[312273393,1705732239268,-500.0,0.00023288,2]
[312273394,1705732239278,-500.0,0.00023288,2]
[312273395,1705732239288,-500.0,0.00023288,2]
[312273396,1705732239297,-500.0,0.00023288,2]
[312273397,1705732239307,-500.0,0.00023288,2]
[312273398,1705732239316,-500.0,0.00023288,2]
[312273399,1705732239327,-613.712228,0.00023288,2]
[312273400,1705732239336,-500.0,0.00023288,2]
[312273401,1705732239345,-500.0,0.00023288,2]
[312273402,1705732239354,-500.0,0.00023288,2]
[312273403,1705732239363,-500.0,0.00023288,2]
[312273404,1705732239373,-500.0,0.00023288,2]
[312273405,1705732239382,-372.67531616,0.00023288,2]
[312273406,1705732239391,-500.0,0.00023288,2]
[312273407,1705732239400,-166.666666,0.00023456,2]
[312273408,1705732239409,-2014.44660015,0.000239,2]
[312273409,1705732239418,-166.666666,0.00023969,2]
[312273410,1705732239429,-4012.5594856,0.00024,2]
[312273411,1705732239439,-318.491003,0.00024439,2]
[312273412,1705732239449,-318.491003,0.00024439,2]
[312273413,1705732239461,-318.491003,0.00024439,2]
[312273414,1705732239471,-318.49099346,0.00024439,2]
[312273415,1705732239480,-50611.86381936,0.0002444,2]
[312273416,1705732239489,-166.666666,0.00024482,2]
[312273417,1705732239498,-200.0,0.00024665,7]
[312273418,1705732239508,-348.0,0.00024665,7]
[312273419,1705732239517,-4721.06450288,0.00025,2]
[312273420,1705732239526,-155.16885659,0.00025,2]
[312273421,1705732239535,-155.5855391,0.00025,2]
[312273422,1705732239545,-193.30440341,0.00025,2]
[312273423,1705732239554,-1045.90652664,0.00025,2]
[312273424,1705732239563,-193.9845979,0.00025479,2]
[312273425,1705732239573,-200.0,0.00027132,15]
[312273426,1705732239582,-200.0,0.00027132,15]
[312273427,1705732239591,-368.0,0.00027132,15]
[312273428,1705732239600,-284.193619,0.00027471,2]
[312273429,1705732239610,-9116.9761504,0.0002785,4]
[312273430,1705732239619,-305.59076867,0.00028,2]
[312273431,1705732239628,-291.58293255,0.00028,2]
[312273432,1705732239637,-154.67518212,0.00028,10]
[312273433,1705732239647,-2014.44660015,0.000289,2]
[312273434,1705732239656,-1879.95128807,0.00029,2]
[312273435,1705732239665,-154.67518212,0.00029,2]
[312273436,1705732239674,-7640.62811996,0.000295,30]
[312273437,1705732239683,-200.0,0.00029845,15]
[312273438,1705732239693,-200.0,0.00029845,15]
[312273439,1705732239702,-200.0,0.00029845,15]
[312273440,1705732239711,-200.0,0.00029845,15]
[312273441,1705732239720,-275.0,0.00029845,15]
[312273442,1705732239729,-705.07327969,0.000299,2]
[312273443,1705732239739,-12423.32320464,0.00029998,2]
[312273444,1705732239748,-29957.37867167,0.0003,2]
[312273445,1705732239758,-18589.14989047,0.0003,2]
[312273446,1705732239766,-284.838519,0.0003,6]
[312273447,1705732239775,-682.08739099,0.0003,3]
[312273448,1705732239784,-154.73694719,0.0003,2]
[312273449,1705732239794,-500.0,0.0003,2]
[312273450,1705732239804,-159.138588,0.00030137,2]
[312273451,1705732239813,-159.205323,0.00030137,2]
[312273452,1705732239822,-227.0,0.0003097,30]
[312273453,1705732239831,-398.0,0.0003097,30]
[312273454,1705732239841,-227.0,0.0003098,30]
[312273455,1705732239851,-398.0,0.0003098,30]
[312273456,1705732239860,-227.0,0.0003099,30]
[312273457,1705732239869,-398.0,0.0003099,30]
[312273458,1705732239879,-2846.05665284,0.00031,2]
[312273459,1705732239889,-89943.79072898,0.00031,2]
[312273460,1705732239899,-154.69061876,0.00032,4]
[312273461,1705732239909,-8012.65115805,0.00032,2]
[312273462,1705732239920,-6972.99454623,0.0003239,2]
[312273463,1705732239930,-50000.0,0.00032547,5]
[312273464,1705732239940,-500.0,0.000326,30]
[312273465,1705732239950,-225.59320079,0.00032648,2]
[312273466,1705732239959,-181.96598908,0.00032649,4]
[312273468,1705732239969,-295.94262131,0.00032649,4]
[312273470,1705732239978,-350.20051027,0.00032649,4]
[312273471,1705732239987,-903.13044819,0.00032649,4]
[312273472,1705732239997,-156.0841207,0.00032649,2]
[312273473,1705732240006,-787.34773645,0.00032649,4]
[312273474,1705732240016,-686.62627649,0.00032649,4]
[312273475,1705732240028,-4321.29306998,0.00032649,4]
[312273476,1705732240037,-300.0,0.00032649,4]
[312273477,1705732240046,-154.69061876,0.00032649,4]
[312273478,1705732240056,-1026.09234423,0.00032649,2]
[312273479,1705732240066,-195.24830444,0.00032649,4]
[312273480,1705732240075,-2799.38070582,0.00032649,4]
[312273482,1705732240084,-282.97323289,0.00032649,3]
[312273483,1705732240094,-156.06030227,0.00032649,2]
[312273484,1705732240103,-314.5036877,0.00032649,2]
[312273485,1705732240112,-2452.49821714,0.00032649,2]
[312273486,1705732240121,-104545.87462432,0.00032649,14]
[312273487,1705732240130,-1017.68199247,0.0003265,4]
[312273489,1705732240140,-8042.11875801,0.00032671,4]
[312273491,1705732240149,-486.31791544,0.00032672,4]
[312273493,1705732240158,-437.79051682,0.00032672,4]
[312273494,1705732240167,-436.74078263,0.00032672,4]
[312273495,1705732240177,-381.47122728,0.00032672,4]
[312273496,1705732240187,-58367.50758672,0.00032673,5]
[312273497,1705732240197,-1347.7771046,0.00032774,4]
[312273498,1705732240207,-256.85025792,0.00032774,4]
[312273499,1705732240216,-15905.2680538,0.00032776,3]
[312273500,1705732240225,-2917.5891822,0.000328,7]
[312273501,1705732240235,-200.0,0.00032829,15]
[312273502,1705732240245,-200.0,0.00032829,15]
[312273503,1705732240259,-200.0,0.00032829,15]
[312273504,1705732240268,-200.0,0.00032829,15]
[312273505,1705732240277,-200.0,0.00032829,15]
[312273506,1705732240288,-200.0,0.00032829,15]
[312273507,1705732240297,-305.0,0.00032829,15]
[312273508,1705732240307,-412.46899047,0.00032849,4]
[312273509,1705732240316,-5000.0,0.00032857,7]
[312273510,1705732240325,-25759.66904333,0.00032858,5]
[312273511,1705732240336,-5000.0,0.00032868,7]
[312273512,1705732240345,-5000.0,0.00032872,7]
[312273513,1705732240355,-8515.07006811,0.00032872,4]
[312273514,1705732240364,-5000.0,0.00032872,7]
[312273515,1705732240479,-5000.0,0.00032872,7]
[312273516,1705732240489,-5000.0,0.00032872,7]
[312273517,1705732240499,-2102.56602861,0.00032874,4]
[312273518,1705732240508,-2207.90754137,0.00032874,4]
[312273519,1705732240517,-1384.81675224,0.00032875,3]
[312273520,1705732240527,-500.0,0.00032876,2]
[312273521,1705732240537,-500.0,0.00032876,2]
[312273522,1705732240546,-500.0,0.00032876,2]
[312273523,1705732240556,-500.0,0.00032876,2]
[312273524,1705732240565,-350.98770712,0.00032876,2]